bitfinex-derivatives/quotes_BTCF0:USTF0_20250910
["timestamp","ask_amount","ask_price","bid_price","bid_amount"]
[1757467614995,0.5657364,111150.0,111140.0,0.003]
[1757467615198,0.911985,111150.0,111140.0,0.003]
[1757467616097,0.8157364,111150.0,111140.0,0.003]
[1757467617205,0.86408991,111150.0,111140.0,0.003]
[1757467618601,0.96033851,111150.0,111140.0,0.003]
[1757467620608,0.86408991,111150.0,111140.0,0.003]
[1757467620808,0.96033851,111150.0,111140.0,0.003]
[1757467621105,0.76784131,111150.0,111140.0,0.003]
[1757467621304,0.8157364,111150.0,111140.0,0.003]
[1757467621499,1.1308878,111150.0,111140.0,0.003]
[1757467621701,1.2285764,111150.0,111140.0,0.003]
[1757467621893,0.1542564,111150.0,111140.0,0.003]
[1757467622097,0.9785764,111150.0,111140.0,0.003]
[1757467622305,1.04313868,111150.0,111140.0,0.003]
[1757467624311,1.02697347,111150.0,111140.0,0.003]
[1757467624504,0.10640487,111150.0,111140.0,0.0254]
[1757467624703,1.02705347,111150.0,111140.0,0.0254]
[1757467625211,1.02705347,111150.0,111140.0,0.003]
[1757467625410,1.02705347,111150.0,111140.0,0.0254]
[1757467625803,1.02697347,111150.0,111140.0,0.0254]
[1757467626806,1.02697347,111150.0,111140.0,0.003]
[1757467626999,1.02697347,111150.0,111140.0,0.0254]
[1757467627205,0.93088487,111150.0,111140.0,0.1216486]
[1757467627402,0.10640487,111150.0,111140.0,0.3716486]
[1757467627603,0.8837278,111150.0,111140.0,0.3854586]
[1757467628103,0.0440978,111150.0,111140.0,0.3854586]
[1757467629005,0.0440978,111150.0,111140.0,0.28921]
[1757467629204,0.0440978,111150.0,111140.0,0.3854586]
[1757467630206,0.0440978,111150.0,111140.0,0.4817072]
[1757467630814,0.0221078,111150.0,111140.0,0.5716778]
[1757467631308,0.0446078,111150.0,111140.0,0.5716778]
[1757467631505,0.0446078,111150.0,111140.0,0.3854586]
[1757467631705,0.0446078,111150.0,111140.0,0.4817072]
[1757467632912,0.0446078,111150.0,111140.0,0.3854586]
[1757467634911,0.1543164,111150.0,111140.0,0.0254]
[1757467635611,0.1543164,111150.0,111140.0,0.003]
[1757467635816,0.1543164,111150.0,111140.0,0.0255]
[1757467636318,0.1543164,111150.0,111140.0,0.1217486]
[1757467636615,0.1543164,111150.0,111140.0,0.0255]
[1757467639821,0.0580678,111150.0,111140.0,0.0255]
[1757467640119,0.1543164,111150.0,111140.0,0.0255]
[1757467641620,0.1543164,111150.0,111140.0,0.003]
[1757467641621,0.4043164,111150.0,111140.0,0.003]
[1757467641914,0.500565,111150.0,111140.0,0.003]
[1757467642118,0.4043164,111150.0,111140.0,0.003]
[1757467643817,0.1543164,111150.0,111140.0,0.003]
[1757467644016,0.0446078,111150.0,111140.0,0.2310372]
[1757467644416,0.0446078,111150.0,111140.0,0.1347886]
[1757467644617,0.0446078,111150.0,111140.0,0.4810372]
[1757467644923,0.001,111150.0,111140.0,0.5710078]
[1757467647123,0.001,111150.0,111140.0,0.4810372]
[1757467647124,0.02427,111150.0,111140.0,0.4810372]
[1757467647714,0.02427,111150.0,111140.0,0.3847886]
[1757467648121,0.02427,111150.0,111140.0,0.4747592]
[1757467648320,0.02427,111150.0,111140.0,0.5710078]
[1757467648524,0.02427,111150.0,111140.0,0.4810372]
[1757467648726,0.02427,111150.0,111140.0,0.3847886]
[1757467650129,0.001,111150.0,111140.0,0.5710078]
[1757467652632,0.02427,111150.0,111140.0,0.5710078]
[1757467652823,0.001,111150.0,111140.0,0.5710078]
[1757467653023,0.02427,111150.0,111140.0,0.5710078]
[1757467653630,0.02427,111150.0,111140.0,0.4810372]
[1757467655228,0.02427,111150.0,111140.0,0.3847886]
[1757467656532,0.02427,111150.0,111140.0,0.28854]
[1757467656729,0.03773,111150.0,111140.0,0.3847886]
[1757467656933,0.02427,111150.0,111140.0,0.3847886]
[1757467657337,0.03773,111150.0,111140.0,0.1347886]
[1757467659439,0.02427,111150.0,111140.0,0.1347886]
[1757467660537,0.02427,111150.0,111140.0,0.03854]
[1757467660738,0.02427,111150.0,111140.0,0.1347886]
[1757467660940,0.3833786,111150.0,111140.0,0.003]
[1757467661139,0.40428748,111150.0,111140.0,0.003]
[1757467661937,0.50053608,111150.0,111140.0,0.003]
[1757467662242,1.23248748,111150.0,111140.0,0.003]
[1757467665336,1.32873608,111150.0,111140.0,0.003]
[1757467666142,0.01286,111140.0,111130.0,0.0001]
[1757467666340,0.03455,111130.0,111120.0,0.16672343]
[1757467666545,0.19988231,111130.0,111120.0,0.16662343]
[1757467666840,0.19988231,111130.0,111120.0,0.0222]
[1757467667046,0.03455,111120.0,111110.0,0.17577475]
[1757467667243,0.17897343,111120.0,111110.0,0.17567475]
[1757467668037,0.17897343,111120.0,111110.0,0.16662343]
[1757467668347,0.02755,111110.0,111100.0,0.16672343]
[1757467668540,0.17197343,111110.0,111100.0,0.0222]
[1757467668740,0.17197343,111110.0,111100.0,0.16662343]
[1757467669740,0.17197343,111110.0,111100.0,0.0222]
[1757467669939,0.19283851,111110.0,111100.0,0.16662343]
[1757467670246,0.04841508,111110.0,111100.0,0.16662343]
[1757467670437,0.19283851,111110.0,111100.0,0.16662343]
[1757467670640,0.04841508,111110.0,111100.0,0.17948343]
[1757467670846,0.19583851,111110.0,111100.0,0.18048343]
[1757467671043,0.05141508,111110.0,111100.0,0.18048343]
[1757467671243,0.17497343,111110.0,111100.0,0.18048343]
[1757467671741,0.02469,111110.0,111100.0,0.57490686]
[1757467671953,0.003,111110.0,111100.0,0.57490686]
[1757467672247,0.02469,111110.0,111100.0,0.57490686]
[1757467674248,0.18197343,111110.0,111100.0,0.16762343]
[1757467674445,0.18197343,111110.0,111100.0,0.0232]
[1757467674746,0.18197343,111110.0,111100.0,0.001]
[1757467675151,0.43197343,111110.0,111100.0,0.001]
[1757467677955,0.43197343,111110.0,111100.0,0.0232]
[1757467679757,0.18197343,111110.0,111100.0,0.001]
[1757467681451,0.18197343,111110.0,111100.0,0.0232]
[1757467681651,0.18197343,111110.0,111100.0,0.16762343]
[1757467682058,0.18197343,111110.0,111100.0,0.001]
[1757467684455,0.34719825,111110.0,111100.0,0.001]
[1757467685657,0.59919825,111110.0,111100.0,0.001]
[1757467685858,0.03455,111100.0,111090.0,0.0001]
[1757467686059,0.03455,111090.0,111080.0,0.0001]
[1757467686259,0.03455,111080.0,111070.0,0.18519079]
[1757467686462,0.17897343,111080.0,111070.0,0.18509079]
[1757467686754,0.03455,111080.0,111070.0,0.18509079]
[1757467687451,0.03455,111080.0,111070.0,0.19408211]
[1757467687650,0.17897343,111080.0,111070.0,0.04066736]
[1757467687859,0.17897343,111080.0,111070.0,0.18509079]
[1757467688054,0.17997343,111080.0,111070.0,0.18609079]
[1757467688459,0.17997343,111080.0,111070.0,0.18709079]
[1757467690459,0.17997343,111080.0,111070.0,0.02046736]
[1757467690655,0.32439686,111080.0,111070.0,0.002]
[1757467691159,0.59518991,111080.0,111070.0,0.002]
[1757467692661,0.05634305,111080.0,111070.0,0.18039343]
[1757467692867,0.04348305,111080.0,111070.0,0.18039343]
[1757467693458,0.20170648,111080.0,111070.0,0.18039343]
[1757467695264,0.18790648,111080.0,111070.0,0.18039343]
[1757467696460,0.20170648,111080.0,111070.0,0.18039343]
[1757467697867,0.20170648,111080.0,111070.0,0.16772343]
[1757467699067,0.34612991,111080.0,111070.0,0.0233]
[1757467699270,0.34612991,111080.0,111070.0,0.16772343]
[1757467699871,0.20170648,111080.0,111070.0,0.16772343]
[1757467700169,0.34612991,111080.0,111070.0,0.002]
[1757467702368,0.59612991,111080.0,111070.0,0.002]
[1757467703362,0.0349,111070.0,111060.0,0.0001]
[1757467703569,0.0349,111060.0,111050.0,0.16582343]
[1757467703866,0.20011648,111060.0,111050.0,0.16572343]
[1757467705068,0.05569305,111060.0,111050.0,0.16572343]
[1757467705364,0.05569305,111060.0,111050.0,0.42839343]
[1757467705762,0.04189305,111060.0,111050.0,0.42839343]
[1757467705961,0.04189305,111060.0,111050.0,0.57281686]
[1757467706168,0.04189305,111060.0,111050.0,0.43039343]
[1757467706565,0.04289305,111060.0,111050.0,0.57481686]
[1757467706868,0.02179305,111060.0,111050.0,0.57481686]
[1757467707256,0.02179305,111060.0,111050.0,0.66486136]
[1757467707461,0.02179305,111060.0,111050.0,0.57481686]
[1757467709371,0.04289305,111060.0,111050.0,0.57481686]
[1757467709573,0.04289305,111060.0,111050.0,0.43039343]
[1757467713373,0.20111648,111060.0,111050.0,0.03597]
[1757467713577,0.20111648,111060.0,111050.0,0.18039343]
[1757467713777,0.20111648,111060.0,111050.0,0.03597]
[1757467713978,0.20111648,111060.0,111050.0,0.16772343]
[1757467714178,0.34553991,111060.0,111050.0,0.0233]
[1757467714377,0.05669305,111060.0,111050.0,0.0233]
[1757467714578,0.34553991,111060.0,111050.0,0.0233]
[1757467714775,0.20111648,111060.0,111050.0,0.16772343]
[1757467715377,0.20111648,111060.0,111050.0,0.0233]
[1757467715572,0.34553991,111060.0,111050.0,0.0233]
[1757467716180,0.20111648,111060.0,111050.0,0.0233]
[1757467717180,0.20111648,111060.0,111050.0,0.16772343]
[1757467718075,0.27383385,111060.0,111050.0,0.0233]
[1757467718282,0.41825728,111060.0,111050.0,0.0233]
[1757467720381,0.41825728,111060.0,111050.0,0.16772343]
[1757467721280,0.41825728,111060.0,111050.0,0.18114343]
[1757467721678,0.27383385,111060.0,111050.0,0.18114343]
[1757467721873,0.27383385,111060.0,111050.0,0.0233]
[1757467722071,1.49273728,111060.0,111050.0,0.002]
[1757467722280,1.63716071,111060.0,111050.0,0.002]
[1757467722578,1.49273728,111060.0,111050.0,0.002]
[1757467724781,1.49349728,111060.0,111050.0,0.0239]
[1757467725382,1.49349728,111060.0,111050.0,0.002]
[1757467728581,1.39749098,111060.0,111050.0,0.002]
[1757467731981,1.14749098,111060.0,111050.0,0.002]
[1757467737990,1.14749098,111060.0,111040.0,0.0001]
[1757467738190,0.13155028,111050.0,111040.0,0.0001]
[1757467738390,0.03513,111040.0,111030.0,0.0001]
[1757467738586,0.13974333,111040.0,111030.0,0.03532]
[1757467738787,0.001,111060.0,111050.0,0.01342]
[1757467738989,0.02353,111060.0,111050.0,0.15000848]
[1757467739186,0.02453,111060.0,111050.0,0.40000848]
[1757467739388,0.002,111060.0,111050.0,0.49642876]
[1757467739591,0.001,111060.0,111050.0,0.40000848]
[1757467739785,0.003,111060.0,111050.0,0.40000848]
[1757467739985,0.003,111060.0,111050.0,0.58647316]
[1757467740192,0.002,111060.0,111050.0,0.58847316]
[1757467740688,1.89952707,111100.0,111090.0,0.03532]
[1757467740891,0.86784792,111100.0,111090.0,0.03532]
[1757467741089,1.07328848,111100.0,111080.0,0.0001]
[1757467741282,0.13155028,111090.0,111080.0,0.022]
[1757467741480,0.15247353,111090.0,111080.0,0.0219]
[1757467742185,0.13155028,111090.0,111080.0,0.0219]
[1757467742386,0.0126,111080.0,111070.0,0.022]
[1757467742581,0.13155028,111080.0,111070.0,0.0219]
[1757467742779,0.03513,111070.0,111060.0,0.022]
[1757467742984,0.03513,111060.0,111050.0,0.0546882]
[1757467743184,0.13155028,111060.0,111050.0,0.0545882]
[1757467743690,0.03513,111060.0,111050.0,0.15100848]
[1757467743891,0.02253,111060.0,111050.0,0.15100848]
[1757467744092,0.02253,111060.0,111050.0,0.15000848]
[1757467745192,0.02353,111060.0,111050.0,0.15400848]
[1757467745694,0.02353,111060.0,111050.0,0.15500848]
[1757467748193,0.03613,111060.0,111050.0,0.15500848]
[1757467748396,0.02353,111060.0,111050.0,0.15500848]
[1757467749897,0.13255028,111060.0,111050.0,0.0269]
[1757467755796,0.15345902,111060.0,111050.0,0.005]
[1757467756303,0.4998793,111060.0,111050.0,0.005]
[1757467756690,0.0137,111050.0,111040.0,0.0001]
[1757467756888,0.03668,111040.0,111030.0,0.0001]
[1757467757099,0.03668,111030.0,111020.0,0.0001]
[1757467757300,0.03668,111020.0,111010.0,0.02266]
[1757467757491,0.13310028,111020.0,111010.0,0.02256]
[1757467759101,0.13110028,111020.0,111010.0,0.02256]
[1757467759304,0.82364,111030.0,111020.0,0.01313]
[1757467759499,0.82364,111030.0,111020.0,0.13211028]
[1757467759500,0.04386582,111030.0,111020.0,0.13211028]
[1757467760198,0.04386582,111030.0,111020.0,0.22853056]
[1757467760396,0.04586582,111030.0,111020.0,0.22853056]
[1757467760797,0.02498,111030.0,111020.0,0.22853056]
[1757467761197,0.02498,111030.0,111020.0,0.03569]
[1757467761399,0.02498,111030.0,111020.0,0.22853056]
[1757467762198,0.02598,111030.0,111020.0,0.23153056]
[1757467762406,0.02598,111030.0,111020.0,0.17338404]
[1757467763508,0.02598,111030.0,111020.0,0.03869]
[1757467765513,0.003,111030.0,111020.0,0.42338404]
[1757467767610,0.003,111030.0,111020.0,1.92338404]
[1757467768904,0.003,111030.0,111020.0,0.28869]
[1757467769113,0.02598,111030.0,111020.0,0.28869]
[1757467769412,0.02598,111030.0,111020.0,1.78869]
[1757467770415,0.003,111030.0,111020.0,1.67338404]
[1757467770608,0.003,111030.0,111020.0,1.92338404]
[1757467771009,0.0137,111070.0,111030.0,0.01313]
[1757467771207,0.99557404,111070.0,111060.0,0.02256]
[1757467771510,1.01650447,111070.0,111050.0,0.01323]
[1757467771705,0.03668,111060.0,111050.0,0.02266]
[1757467771905,0.03668,111060.0,111050.0,0.02256]
[1757467772310,0.05762767,111060.0,111050.0,0.02256]
[1757467773118,0.19232171,111060.0,111040.0,0.01323]
[1757467773713,0.19332171,111060.0,111050.0,0.02256]
[1757467774016,0.03668,111050.0,111040.0,0.02266]
[1757467774211,0.03668,111050.0,111040.0,0.02256]
[1757467774816,0.03668,111040.0,111030.0,0.03579]
[1757467775012,0.03668,111040.0,111030.0,0.03569]
[1757467775417,0.03668,111040.0,111030.0,0.02256]
[1757467775620,0.03468,111040.0,111030.0,0.02256]
[1757467776116,0.16937404,111040.0,111030.0,0.02256]
[1757467776509,0.41937404,111040.0,111030.0,0.003]
[1757467776709,0.41937404,111040.0,111030.0,0.02556]
[1757467776710,0.28468,111040.0,111030.0,0.02556]
[1757467777310,0.02398,111040.0,111030.0,0.03869]
[1757467777517,0.02398,111040.0,111030.0,0.17338404]
[1757467777725,0.02598,111040.0,111030.0,0.03969]
[1757467778717,0.02598,111040.0,111030.0,0.17438404]
[1757467778918,0.02598,111040.0,111030.0,0.03969]
[1757467779116,0.03864,111040.0,111030.0,0.004]
[1757467779322,0.05960743,111040.0,111030.0,0.02656]
[1757467781419,0.30960743,111040.0,111030.0,0.02656]
[1757467782320,0.44430147,111040.0,111030.0,0.02656]
[1757467782716,0.30960743,111040.0,111030.0,0.02656]
[1757467782917,0.30960743,111040.0,111030.0,0.004]
[1757467783323,0.44430147,111040.0,111030.0,0.004]
[1757467784320,0.50250831,111040.0,111030.0,0.004]
[1757467785434,0.5025304,111040.0,111030.0,0.004]
[1757467787829,0.97907996,111040.0,111030.0,0.02724]
[1757467788538,0.05962952,111040.0,111030.0,0.02724]
[1757467788727,0.86984952,111040.0,111030.0,0.13667044]
[1757467789028,0.97895996,111040.0,111030.0,0.04022]
[1757467789627,0.97895996,111040.0,111030.0,0.02724]
[1757467790325,1.02716378,111040.0,111030.0,0.17189426]
[1757467790520,1.17181804,111040.0,111030.0,0.17189426]
[1757467790826,1.17181804,111040.0,111030.0,0.02724]
[1757467791031,1.42181804,111040.0,111030.0,0.004]
[1757467791925,0.04696952,111040.0,111030.0,0.18487426]
[1757467792128,0.19162378,111040.0,111030.0,0.18487426]
[1757467793228,0.20428378,111040.0,111030.0,0.18487426]
[1757467793429,0.34893804,111040.0,111030.0,0.17189426]
[1757467793633,0.34893804,111040.0,111030.0,0.02724]
[1757467798232,0.34893804,111040.0,111030.0,0.004]
[1757467799536,0.59893804,111040.0,111030.0,0.004]
[1757467800542,0.59894424,111040.0,111030.0,0.004]
[1757467802140,0.30963572,111040.0,111030.0,0.004]
[1757467802436,0.59894424,111040.0,111030.0,0.004]
[1757467803034,0.59894424,111040.0,111030.0,0.02724]
[1757467803233,0.59894424,111040.0,111030.0,0.18487426]
[1757467803234,0.04697572,111040.0,111030.0,0.18487426]
[1757467803543,0.04697572,111040.0,111030.0,0.43487426]
[1757467803940,0.04697572,111040.0,111030.0,0.57952852]
[1757467803941,0.02399572,111040.0,111030.0,0.57952852]
[1757467804143,0.02399572,111040.0,111030.0,0.43487426]
[1757467804331,0.003,111040.0,111030.0,0.57952852]
[1757467805141,0.003,111040.0,111030.0,0.43487426]
[1757467806138,0.003,111040.0,111030.0,0.57952852]
[1757467807139,0.0001348,111050.0,111040.0,0.03622]
[1757467807342,0.0001348,111050.0,111040.0,0.57552852]
[1757467808547,0.0011348,111050.0,111040.0,0.59496244]
[1757467808752,0.0011348,111050.0,111040.0,0.68501444]
[1757467809040,0.64741426,111080.0,111040.0,0.8296687]
[1757467809248,0.18783652,111080.0,111070.0,0.18087426]
[1757467810646,0.02098226,111080.0,111070.0,0.18087426]
[1757467810846,2.80577426,111090.0,111080.0,0.0366]
[1757467811057,2.82673436,111090.0,111080.0,0.18125426]
[1757467811242,2.82673436,111090.0,111080.0,0.0366]
[1757467811442,2.83932436,111090.0,111080.0,0.0366]
[1757467812247,2.01696436,111090.0,111080.0,0.0366]
[1757467812442,2.84232436,111090.0,111080.0,0.0376]
[1757467812648,2.84532436,111090.0,111080.0,0.0386]
[1757467813045,2.02296436,111090.0,111080.0,0.0386]
[1757467813346,2.84528436,111090.0,111080.0,0.0386]
[1757467813546,2.84528436,111090.0,111080.0,0.02482]
[1757467815349,2.84524436,111090.0,111080.0,0.02482]
[1757467816046,0.0119,111080.0,111070.0,0.0001]
[1757467816251,0.03515,111070.0,111060.0,0.0002348]
[1757467816444,1.02300436,111070.0,111060.0,0.0001348]
[1757467816639,1.16765862,111070.0,111060.0,0.0001348]
[1757467818454,1.01392631,111070.0,111060.0,0.0001348]
[1757467819156,1.01592631,111070.0,111060.0,0.0011348]
[1757467819454,0.0581101,111070.0,111060.0,0.0239548]
[1757467819647,0.8672401,111070.0,111060.0,0.0377348]
[1757467819949,0.8692401,111070.0,111060.0,0.0377348]
[1757467820148,1.00481631,111070.0,111060.0,0.0377348]
[1757467820744,0.18257631,111070.0,111060.0,0.0377348]
[1757467820949,1.00477631,111070.0,111060.0,0.0377348]
[1757467824954,0.8692001,111070.0,111060.0,0.0377348]
[1757467825151,1.00477631,111070.0,111060.0,0.0377348]
[1757467829757,0.8692001,111070.0,111060.0,0.0377348]
[1757467829953,1.00477631,111070.0,111060.0,0.0377348]
[1757467830258,1.01788631,111070.0,111060.0,0.0239548]
[1757467830856,1.26788631,111070.0,111060.0,0.0011348]
[1757467831557,1.27676594,111070.0,111060.0,0.0011348]
[1757467832458,1.41234215,111070.0,111060.0,0.0011348]
[1757467833056,1.27676594,111070.0,111060.0,0.0011348]
[1757467833359,1.27672594,111070.0,111060.0,0.0011348]
[1757467836957,1.32512301,111070.0,111060.0,0.0011348]
[1757467837260,1.27672594,111070.0,111060.0,0.0011348]
[1757467837956,0.03515,111060.0,111050.0,0.0001]
[1757467838162,0.03468,111050.0,111040.0,0.01853392]
[1757467838365,1.01337631,111050.0,111040.0,0.01843392]
[1757467838756,1.01337631,111050.0,111030.0,0.0001]
[1757467838958,0.16951621,111040.0,111030.0,0.0001]
[1757467839159,0.03515,111030.0,111020.0,0.02292]
[1757467839358,0.99296621,111030.0,111020.0,0.02282]
[1757467839554,0.85739,111030.0,111020.0,0.0366]
[1757467840368,1.00005956,111030.0,111020.0,0.18126956]
[1757467840866,0.0540518,111030.0,111020.0,0.41748956]
[1757467841071,1.02092136,111030.0,111020.0,0.41748956]
[1757467841361,0.0459418,111030.0,111020.0,0.58011912]
[1757467841668,0.003,111030.0,111020.0,0.72478868]
[1757467841865,0.003,111030.0,111020.0,0.58011912]
[1757467844760,0.003,111030.0,111020.0,0.81485648]
[1757467845466,0.0001348,111040.0,111030.0,0.03631]
[1757467845760,0.0001348,111040.0,111030.0,1.39800912]
[1757467846367,0.0001348,111040.0,111030.0,1.3797585]
[1757467846863,0.0001348,111040.0,111030.0,1.3817585]
[1757467846864,0.0011348,111040.0,111030.0,1.3817585]
[1757467847465,0.0031348,111040.0,111030.0,1.3837585]
[1757467850368,0.19505132,111080.0,111040.0,0.01396]
[1757467850667,0.23909919,111080.0,111070.0,0.02235]
[1757467850864,1.06133919,111080.0,111070.0,0.02235]
[1757467851466,0.29404787,111080.0,111070.0,0.03631]
[1757467851669,0.02191787,111080.0,111070.0,0.17185425]
[1757467851971,0.02291787,111080.0,111070.0,0.17185425]
[1757467852160,0.02291787,111080.0,111070.0,0.18072116]
[1757467852365,0.02291787,111080.0,111070.0,0.17975215]
[1757467852561,0.001,111080.0,111070.0,0.42975215]
[1757467852874,0.003,111080.0,111070.0,1.25331215]
[1757467853268,0.003,111080.0,111070.0,1.27179432]
[1757467853671,0.002,111080.0,111070.0,1.27179432]
[1757467853876,0.004,111080.0,111070.0,1.27279432]
[1757467854569,0.02313,111110.0,111100.0,0.01396]
[1757467854772,1.83049,111130.0,111100.0,0.17088524]
[1757467854980,1.87451454,111130.0,111120.0,0.03631]
[1757467855166,2.00908978,111130.0,111120.0,0.03631]
[1757467856370,2.01308978,111130.0,111120.0,0.03631]
[1757467856978,1.88651454,111130.0,111120.0,0.03731]
[1757467857176,1.87254454,111130.0,111120.0,0.03731]
[1757467857379,0.03289454,111130.0,111120.0,0.17288524]
[1757467857579,0.012,111130.0,111120.0,0.17288524]
[1757467858677,0.012,111130.0,111120.0,0.42288524]
[1757467859983,0.004,111130.0,111120.0,0.42188524]
[1757467860184,0.007,111130.0,111120.0,0.42288524]
[1757467860384,0.03013,111130.0,111120.0,0.28831]
[1757467860585,0.03013,111130.0,111120.0,0.42288524]
[1757467860789,0.007,111130.0,111120.0,0.42288524]
[1757467862177,0.007,111130.0,111120.0,1.24480524]
[1757467862485,0.007,111130.0,111120.0,0.42288524]
[1757467863373,2.17221,111170.0,111130.0,0.01396]
[1757467863589,2.21610449,111170.0,111160.0,0.02235]
[1757467864186,2.35067973,111170.0,111160.0,0.02235]
[1757467864383,2.35067973,111170.0,111150.0,0.0141948]
[1757467864585,0.17167524,111160.0,111150.0,0.0225848]
[1757467864784,0.17167524,111160.0,111150.0,0.0224848]
[1757467865688,0.02313,111160.0,111150.0,0.0364448]
[1757467866388,0.02813,111160.0,111150.0,0.0374448]
[1757467866588,0.06283499,111160.0,111150.0,0.0374448]
[1757467867084,0.44741023,111160.0,111150.0,0.0011348]
[1757467868180,0.44741023,111160.0,111150.0,0.0244848]
[1757467868385,0.45141023,111160.0,111150.0,0.0244848]
[1757467868785,0.31683499,111160.0,111150.0,0.0384448]
[1757467869087,0.2961,111160.0,111150.0,0.0384448]
[1757467869286,0.31682794,111160.0,111150.0,0.0384448]
[1757467869689,0.45140318,111160.0,111150.0,0.0384448]
[1757467870192,0.42567524,111160.0,111150.0,0.0234848]
[1757467870391,0.42667524,111160.0,111150.0,0.0234848]
[1757467871184,0.44741578,111160.0,111150.0,0.0234848]
[1757467871385,0.30884054,111160.0,111150.0,0.0224848]
[1757467871588,0.44441578,111160.0,111150.0,0.0234848]
[1757467871989,0.44441529,111160.0,111150.0,0.0011348]
[1757467872778,0.44541529,111160.0,111150.0,0.0011348]
[1757467874789,1.26865529,111160.0,111150.0,0.0011348]
[1757467877292,1.26865529,111160.0,111150.0,0.0222648]
[1757467877490,1.26865529,111160.0,111150.0,0.0011348]
[1757467878600,0.06084005,111160.0,111150.0,0.0222648]
[1757467878795,1.01845529,111160.0,111150.0,0.0222648]
[1757467879593,1.01845529,111160.0,111150.0,0.0011348]
[1757467879992,1.26845529,111160.0,111150.0,0.0011348]
[1757467880402,0.03683,111150.0,111140.0,0.0001]
[1757467880589,0.03683,111150.0,111130.0,0.0001]
[1757467880590,0.03683,111140.0,111130.0,0.0001]
[1757467880786,0.03683,111130.0,111120.0,0.0001]
[1757467880988,0.03683,111130.0,111100.0,0.03126697]
[1757467880989,0.03683,111110.0,111100.0,0.03921697]
[1757467881194,0.05757005,111110.0,111100.0,0.03921697]
[1757467881491,0.05757005,111110.0,111100.0,0.05239697]
[1757467882796,0.05757005,111110.0,111100.0,0.02113]
[1757467882991,0.88081005,111110.0,111100.0,0.02113]
[1757467883686,0.88181005,111110.0,111100.0,0.02513]
[1757467884694,0.88381005,111110.0,111100.0,0.03213]
[1757467885694,0.05957005,111110.0,111100.0,0.007]
[1757467885898,1.01822529,111110.0,111100.0,0.007]
[1757467886202,1.31640963,111110.0,111100.0,0.007]
[1757467886395,0.49332963,111110.0,111100.0,0.007]
[1757467886593,1.31652963,111110.0,111100.0,0.007]
[1757467886899,0.03683,111080.0,111070.0,0.03961217]
[1757467887097,0.05757005,111080.0,111070.0,0.03961217]
[1757467888795,0.05757005,111080.0,111070.0,0.04261217]
[1757467889695,1.01770529,111080.0,111070.0,0.03961217]
[1757467890190,0.19314529,111080.0,111070.0,0.03961217]
[1757467890392,1.01770529,111080.0,111070.0,0.03961217]
[1757467890602,1.01870529,111080.0,111070.0,0.04561217]
[1757467890798,0.88413005,111080.0,111070.0,0.04561217]
[1757467891702,0.88313005,111080.0,111070.0,0.03961217]
[1757467892002,0.88413005,111080.0,111070.0,0.04161217]
[1757467892593,1.01870529,111080.0,111070.0,0.02048217]
[1757467893115,1.26870529,111080.0,111070.0,0.02048217]
[1757467893496,1.26850529,111080.0,111070.0,0.02048217]
[1757467893698,1.26850529,111080.0,111070.0,0.002]
[1757467894300,0.03683,111050.0,111040.0,0.05238731]
[1757467894604,0.03683,111050.0,111040.0,0.03920731]
[1757467895599,0.03683,111050.0,111040.0,0.04220731]
[1757467896105,0.03683,111050.0,111040.0,0.05538731]
[1757467896308,0.02284,111050.0,111040.0,0.18996255]
[1757467896497,0.02384,111050.0,111040.0,0.19596255]
[1757467896703,0.02384,111050.0,111040.0,0.53601455]
[1757467896704,0.001,111050.0,111040.0,0.53601455]
[1757467896898,0.001,111050.0,111040.0,0.44596255]
[1757467898010,0.001,111050.0,111040.0,0.53601455]
[1757467899407,0.001,111050.0,111040.0,0.28601455]
[1757467899805,0.001,111050.0,111040.0,0.53601455]
[1757467900413,0.0001348,111060.0,111050.0,0.0900439]
[1757467900713,0.0001348,111060.0,111050.0,0.25892914]
[1757467901205,0.0001348,111060.0,111050.0,0.16888524]
[1757467901710,0.0216448,111060.0,111050.0,0.17088524]
[1757467902100,0.0216448,111060.0,111050.0,0.03631]
[1757467902809,0.0354348,111060.0,111050.0,0.03631]
[1757467903410,0.0001348,111060.0,111050.0,0.17088524]
[1757467904216,0.0216448,111060.0,111050.0,0.03631]
[1757467904507,0.0216448,111060.0,111050.0,0.17088524]
[1757467904712,0.0226448,111060.0,111050.0,0.17588524]
[1757467905613,0.0226448,111060.0,111050.0,0.04131]
[1757467905916,0.0364348,111060.0,111050.0,0.02813]
[1757467906099,0.0226448,111060.0,111050.0,0.04187]
[1757467906304,0.0011348,111060.0,111050.0,0.17644524]
[1757467909109,0.0011348,111060.0,111050.0,0.26648914]
[1757467909410,0.0011348,111060.0,111050.0,0.17644524]
[1757467910107,0.0226448,111060.0,111050.0,0.17644524]
[1757467910502,0.0226448,111060.0,111050.0,0.04187]
[1757467910711,0.0226448,111060.0,111050.0,0.17644524]
[1757467911210,0.2864348,111060.0,111050.0,0.02813]
[1757467912013,0.2864348,111060.0,111050.0,0.007]
[1757467912214,0.30732636,111060.0,111050.0,0.007]
[1757467913418,0.4419016,111060.0,111050.0,0.007]
[1757467913614,0.4419016,111060.0,111050.0,0.04328]
[1757467913615,0.30732636,111060.0,111050.0,0.04328]
[1757467914108,0.30732636,111060.0,111050.0,0.02954]
[1757467914317,0.05732636,111060.0,111050.0,0.17881944]
[1757467914702,0.04353636,111060.0,111050.0,0.17881944]
[1757467915206,0.05732636,111060.0,111050.0,0.17881944]
[1757467915405,0.05732636,111060.0,111050.0,0.04328]
[1757467917518,0.1928658,111060.0,111050.0,0.007]
[1757467918612,0.4428658,111060.0,111050.0,0.007]
[1757467918915,0.4428658,111060.0,111050.0,0.02954]
[1757467919115,0.30732636,111060.0,111050.0,0.007]
[1757467919718,0.4428658,111060.0,111050.0,0.007]
[1757467920118,0.57840524,111060.0,111050.0,0.007]
[1757467920316,0.4428658,111060.0,111050.0,0.007]
[1757467920522,0.49113744,111060.0,111050.0,0.007]
[1757467920826,0.49118306,111060.0,111050.0,0.007]
[1757467921125,1.31574306,111060.0,111050.0,0.007]
[1757467921315,1.40301086,111060.0,111050.0,0.007]
[1757467921511,0.03494,111050.0,111040.0,0.0001]
[1757467921820,0.0353,111040.0,111030.0,0.0001]
[1757467922021,0.05623718,111040.0,111030.0,0.02254]
[1757467922724,0.05623718,111040.0,111030.0,0.17181944]
[1757467922916,0.04244718,111040.0,111030.0,0.17181944]